lending/lending_fUSD_20241014
["ID","MTS","AMOUNT","RATE_DAILY","PERIOD"]
[340229889,1728879031823,-166.80647998,0.00010997,2]
[340229890,1728879031833,-1000.0,0.00010999,2]
[340229891,1728879031842,-1000.0,0.00010999,2]
[340229892,1728879031851,-150.01,0.00010999,2]
[340229893,1728879031860,-200473.16454409,0.00011,2]
[340229894,1728879031872,-10126.34802811,0.00011,2]
[340229895,1728879031884,-4913.78853176,0.00011,2]
[340229896,1728879031894,-8332.30664326,0.00011,2]
[340229897,1728879031919,-377.86782155,0.00011,2]
[340229898,1728879031930,-4842.77797531,0.00011,2]
[340229899,1728879031941,-101498.04903326,0.00011,2]
[340229900,1728879031957,-2534.578025,0.00011,2]
[340229901,1728879031968,-683.64,0.00011,2]
[340229902,1728879031979,-463.05,0.00011,2]
[340229903,1728879031993,-905.87028394,0.00011,2]
[340229919,1728879037628,-3221.7,0.00010995,2]
[340229921,1728879037681,-284.55598743,0.00010995,2]
[340229922,1728879037788,-671.77240113,0.00010995,2]
[340229923,1728879037843,-775.42796569,0.00010995,2]
[340229924,1728879037952,-32539.99937189,0.00010995,2]
[340229925,1728879037963,-5466.62328587,0.00010995,2]
[340229926,1728879037974,-534.10191353,0.00010995,2]
[340229927,1728879038006,-44464.22831686,0.00010995,2]
[340229928,1728879038015,-23101.2771007,0.00011,2]
[340229929,1728879038027,-1257.89309768,0.00011,2]
[340229930,1728879038038,-851.01960459,0.00011,2]
[340229933,1728879039538,-628.22152007,0.00011,2]
[340229934,1728879039697,-705.43893694,0.00011,2]
[340229935,1728879039708,-2581.71489536,0.00011,2]
[340229936,1728879039719,-3422.99865,0.00011,2]
[340229937,1728879039729,-779.8659024,0.00011,2]
[340229938,1728879039750,-849.53093159,0.00011,2]
[340229939,1728879039761,-937.40963676,0.00011,2]
[340229940,1728879039859,-5184.20181618,0.00011,2]
[340229941,1728879039915,-576.57164403,0.00011,2]
[340229962,1728879040255,427.67,9.395e-05,2]
[340230074,1728879042638,-954.42221295,0.00011,2]
[340230075,1728879042692,-1298.75000012,0.00011,2]
[340230076,1728879042702,-1104.87426658,0.00011,2]
[340230077,1728879042714,-663.44208801,0.00011,2]
[340230078,1728879042746,-451.62719879,0.00011,2]
[340230079,1728879042801,-662.72586582,0.00011,2]
[340230080,1728879042812,-578240.99999973,0.00011,2]
[340230082,1728879045573,-64620.38141322,0.00011,2]
[340230084,1728879045584,-9506.85854717,0.00011,2]
[340230085,1728879045733,-2361.54600829,0.00011,2]
[340230086,1728879045792,-687.13647804,0.00011,2]
[340230087,1728879045803,-681.5947024,0.00011,2]
[340230088,1728879045814,-1229.9991,0.00011,2]
[340230089,1728879045841,-6339.13433549,0.00011,2]
[340230090,1728879045852,-477.7165592,0.00011,2]
[340230091,1728879045896,-25811.2906814,0.00011,2]
[340230109,1728879060721,305.7723,0.00010148,2]
[340230113,1728879097274,550.0,0.0001,2]
[340230126,1728879541225,423.58,8.446e-05,2]
[340230128,1728879546424,281.3,0.00010222,2]
[340230129,1728879551528,532.2,0.00010222,2]
[340230131,1728879556661,800.0,0.00010222,2]
[340230135,1728879756448,166.2,0.00010169,2]
[340230137,1728879829431,250.0,0.00010125,2]
[340230138,1728879874927,250.0,0.00010138,2]
[340230142,1728880015189,294.78,0.00010142,2]
[340230143,1728880022984,402.4,8.261e-05,2]
[340230153,1728880121216,669.0,0.00027,60]
[340230163,1728880166689,1000.0,0.00010168,2]
[340230166,1728880182921,8725.81,0.00010168,2]
[340230179,1728880231693,-1511.57,0.00010472,2]
[340230182,1728880231705,-982.23239789,0.00010472,2]
[340230184,1728880231754,-579.05938411,0.00010472,2]
[340230186,1728880231763,-402.4,0.00010525,2]
[340230187,1728880231772,-159.7788512,0.00010873,2]
[340230190,1728880231783,-181.32030369,0.00010879,2]
[340230192,1728880231794,-426.82839896,0.00010879,2]
[340230194,1728880231803,-1683.61072975,0.00010879,2]
[340230196,1728880231813,-981.84653601,0.00010879,2]
[340230198,1728880231825,-1633.23353732,0.00010879,2]
[340230199,1728880231835,-150.0,0.00010879,2]
[340230200,1728880231844,-300.0,0.00010879,2]
[340230201,1728880231853,-1218.59607532,0.0001088,2]
[340230202,1728880231868,-573.29636421,0.0001088,2]
[340230203,1728880231879,-11150.18333446,0.0001088,2]
[340230204,1728880231890,-922.8622943,0.0001088,2]
[340230205,1728880231930,-438.97982347,0.0001088,2]
[340230206,1728880231944,-393815.2289209,0.0001088,2]
[340230207,1728880231987,-128179.071549,0.0001088,2]
[340230208,1728880232001,-705.5086936,0.0001088,2]
[340230214,1728880237758,-10919.1589561,0.0001088,2]
[340230215,1728880237769,-684.50235174,0.0001088,2]
[340230216,1728880237815,-470.60587735,0.0001088,2]
[340230217,1728880237872,-1185.34288774,0.0001088,2]
[340230218,1728880237883,-2082.44359574,0.0001088,2]
[340230219,1728880237895,-12001.67802,0.0001088,2]
[340230220,1728880237934,-250.0,0.0001088,2]
[340230221,1728880237948,-307.25000024,0.0001088,2]
[340230222,1728880237960,-293.08809732,0.0001088,2]
[340230223,1728880237971,-1839.65332652,0.0001088,2]
[340230224,1728880238056,-158089.86204885,0.0001088,2]
[340230225,1728880238066,-8385.17923753,0.0001088,2]
[340230226,1728880238076,-5192.26671267,0.00010899,2]
[340230227,1728880238086,-353.6204,0.000109,2]
[340230228,1728880238095,-24690.563,0.000109,2]
[340230229,1728880238104,-40594.3947,0.000109,2]
[340230230,1728880238113,-173.39192528,0.000109,2]
[340230231,1728880238122,-239.22765398,0.000109,2]
[340230232,1728880238131,-500.0,0.00010958,2]
[340230233,1728880238140,-500.0,0.00010958,2]
[340230234,1728880238149,-241.45823296,0.00010958,2]
[340230235,1728880238159,-500.0,0.00010958,2]
[340230237,1728880238168,-467.05791161,0.00010958,2]
[340230238,1728880238177,-159.17,0.00010959,2]
[340230239,1728880238187,-160.5,0.00010959,2]
[340230240,1728880238202,-186.29,0.00010959,2]
[340230241,1728880238212,-275.782,0.00010959,2]
[340230242,1728880238222,-1514.54,0.00010959,2]
[340230243,1728880238231,-500.0,0.00010973,2]
[340230244,1728880238241,-5260.8113712,0.0001099,2]
[340230245,1728880238251,-2532.40027554,0.00010998,2]
[340230246,1728880238260,-294.10819062,0.00010999,2]
[340230247,1728880238270,-199164.80974423,0.00011,2]
[340230248,1728880238286,-1021.01799373,0.00011,2]
[340230250,1728880239776,-523.73466709,0.00011,2]
[340230251,1728880239833,-400.07483383,0.00011,2]
[340230252,1728880239844,-745.83403878,0.00011,2]
[340230253,1728880239855,-5464.19112739,0.00011,2]
[340230254,1728880239891,-3372.01918092,0.00011,2]
[340230255,1728880239902,-835.6939001,0.00011,2]
[340230256,1728880239913,-1268.47499999,0.00011,2]
[340230257,1728880240004,-1205.6635813,0.00011,2]
[340230258,1728880240061,-2490.24195603,0.00011,2]
[340230327,1728880242765,-263.34512869,0.0001045,2]
[340230329,1728880242775,-371.99786448,0.00011,2]
[340230335,1728880242932,-4470.16,0.00011,2]
[340230336,1728880242946,-3004.950001,0.00011,2]
[340230337,1728880242958,-651.54558971,0.00011,2]
[340230338,1728880242992,-3062.1744444,0.00011,2]
[340230339,1728880243005,-6548.58957601,0.00011,2]
[340230340,1728880243017,-628.60422929,0.00011,2]
[340230341,1728880243054,-1309.9999992,0.00011,2]
[340230342,1728880243065,-7314.75,0.00011,2]
[340230343,1728880243076,-627.02,0.00011,2]
[340230344,1728880243087,-642.994303,0.00011,2]
[340230347,1728880245750,-1406.5983811,0.00011,2]
[340230349,1728880245761,-12648.60162845,0.00011,2]
[340230351,1728880245865,-7125.0,0.00011,2]
[340230352,1728880245924,-7888.38768494,0.00011,2]
[340230353,1728880245934,-27030.70112739,0.00011,2]
[340230354,1728880245945,-730.63421235,0.00011,2]
[340230355,1728880246036,-3361.59912483,0.00011,2]
[340230362,1728880537248,-250.0,0.00010595,2]
[340230363,1728880537268,-250.0,0.00010603,2]
[340230364,1728880537287,-2302.3682,0.0001068,2]
[340230365,1728880537306,-161.28046835,0.000109,2]
[340230366,1728880537327,-1278.3872,0.000109,2]
[340230367,1728880537346,-173.39192528,0.000109,2]
[340230368,1728880537365,-1108.1351,0.000109,2]
[340230369,1728880537386,-5104.61708733,0.000109,2]
[340230370,1728880537406,-224.77541145,0.000109,2]
[340230371,1728880537426,-53027.63476142,0.00010927,2]
[340230372,1728880537445,-1067.6637751,0.00010995,2]
[340230373,1728880537467,-502.02926833,0.00010995,2]
[340230374,1728880537487,-1718.7154608,0.00010995,2]
[340230375,1728880537507,-93498.6162455,0.00010995,2]
[340230376,1728880537526,-11766.0799857,0.00010995,2]
[340230377,1728880537546,-583.82267994,0.00010997,2]
[340230378,1728880537566,-500.0,0.00010999,2]
[340230379,1728880537585,-440.78329203,0.00010999,2]
[340230380,1728880537605,-500.0,0.00010999,2]
[340230381,1728880537626,-559.33121346,0.00010999,2]
[340230382,1728880537650,-89982.36792531,0.00011,2]
[340230383,1728880571862,-168.08,0.00010634,2]
[340230384,1728880571883,-500.0,0.00010645,2]
[340230385,1728880571904,-1000.35260828,0.000109,2]
[340230386,1728880571924,-158.19,0.00010959,2]
[340230387,1728880571951,-954173.37739172,0.00011,2]
[340230393,1728880632958,389.49,8.722e-05,2]
[340230395,1728880919507,550.0,0.0001,2]
[340230396,1728880996869,186.07601717,0.00027,60]
[340230398,1728881048720,-163.21,0.00010265,2]
[340230399,1728881048741,-163.21,0.00010271,2]
[340230400,1728881048762,-163.21,0.00010278,2]
[340230401,1728881048783,-163.21,0.00010284,2]
[340230402,1728881048803,-347.16,0.00010288,2]
[340230403,1728881050522,-349.97,0.00010288,2]
[340230404,1728881050543,-250.0,0.00010288,2]
[340230405,1728881050564,-163.21,0.0001029,2]
[340230406,1728881050585,-163.21,0.00010297,2]
[340230407,1728881050607,-73.61,0.00010303,2]
[340230408,1728881051950,-89.6,0.00010303,2]
[340230409,1728881051970,-163.21,0.0001031,2]
[340230410,1728881051990,-163.21,0.00010316,2]
[340230417,1728881187018,370.01,8.447e-05,2]
[340230423,1728881431852,-250.0,0.00010285,2]
[340230425,1728881431862,-146.48017172,0.00010317,2]
[340230426,1728881431907,-153.51982828,0.00010317,2]
[340230427,1728881431917,-259.43332568,0.00010318,2]
[340230428,1728881432020,-4611.0882947,0.00010318,2]
[340230429,1728881432035,-3696.00527071,0.00010318,2]
[340230430,1728881432268,-13.35031965,0.00010318,2]
[340230431,1728881432280,-15310.12278926,0.00010318,2]
[340230432,1728881432289,-161.29,0.00010336,2]
[340230433,1728881432299,-157.39,0.00010339,2]
[340230434,1728881432309,-800.0,0.00010343,2]
[340230435,1728881432318,-1852.42,0.00010347,2]
[340230436,1728881432328,-263.34512869,0.0001045,2]
[340230437,1728881432337,-200.0,0.00010677,2]
[340230438,1728881432347,-370.01,0.00010711,2]
[340230439,1728881432356,-150.0,0.00010899,2]
[340230440,1728881432368,-1000.0,0.000109,2]
[340230441,1728881432377,-11903.1631,0.000109,2]
[340230442,1728881432386,-1074.3724,0.000109,2]
[340230443,1728881432395,-344.5808,0.000109,2]
[340230444,1728881432406,-5884.7063,0.000109,2]
[340230445,1728881432415,-1000.0,0.000109,2]
[340230446,1728881432423,-304.76,0.000109,2]
[340230447,1728881432434,-300.56,0.000109,2]
[340230448,1728881432442,-427.45,0.000109,2]
[340230449,1728881432452,-862.58,0.000109,2]
[340230450,1728881432461,-721.17,0.000109,2]
[340230451,1728881432472,-429.35,0.000109,2]
[340230452,1728881432480,-762.4,0.000109,2]
[340230453,1728881432489,-1571.2489,0.000109,2]
[340230454,1728881432498,-169.16770408,0.000109,2]
[340230455,1728881432507,-666.90173886,0.000109,2]
[340230456,1728881432516,-4654.91301651,0.000109,2]
[340230457,1728881432525,-755.74,0.000109,2]
[340230458,1728881432534,-186.29,0.00010959,2]
[340230459,1728881432543,-159.05,0.00010959,2]
[340230460,1728881432552,-500.0,0.00010973,2]
[340230461,1728881432561,-220.625,0.00010995,2]
[340230462,1728881432570,-11295.61751611,0.00011,2]
[340230463,1728881432581,-8514.18884719,0.00011,2]
[340230464,1728881432592,-5961.52492306,0.00011,2]
[340230465,1728881432604,-479.16,0.00011,2]
[340230466,1728881432622,-280.56667432,0.00011,2]
[340230467,1728881432633,-737.45879672,0.00011,2]
[340230469,1728881437997,-1695.58212262,0.00011,2]
[340230470,1728881438008,-2445.79999996,0.00011,2]
[340230471,1728881438161,-439.25,0.00011,2]
[340230472,1728881438219,-1084.44127521,0.00011,2]
[340230473,1728881438327,-846.86570444,0.00011,2]
[340230474,1728881438339,-31430.14286162,0.00011,2]
[340230475,1728881438383,-2332.51983803,0.00011,2]
[340230476,1728881438441,-25511.42508837,0.00011,2]
[340230519,1728881439889,-718.21511764,0.00011,2]
[340230520,1728881440001,-62703.68263699,0.00011,2]
[340230521,1728881440059,-528.55,0.00011,2]
[340230522,1728881440116,-593.9603996,0.00011,2]
[340230523,1728881440127,-635.525,0.00011,2]
[340230524,1728881440175,-3441.38815,0.00011,2]
[340230525,1728881440336,-52.96280694,0.00011,2]
[340230526,1728881440348,-46098.24488766,0.00011,2]
[340230819,1728881443238,-946.0,0.00011,2]
[340230824,1728881443279,-337.04163627,0.00011,2]
[340230836,1728881443390,-2500.0,0.000109,2]
[340230838,1728881443400,-1573.60401355,0.00011,2]
[340230840,1728881443412,-2652.18828787,0.00011,2]
[340230844,1728881443447,-256.14971792,0.00011,2]
[340230846,1728881443458,-293.44999981,0.00011,2]
[340230852,1728881443504,-341.73382003,0.00011,2]
[340231041,1728881445984,-1221.7588,0.00011,2]
[340231042,1728881446149,-3200.7790927,0.00011,2]
[340231043,1728881446161,-2260.74845302,0.00011,2]
[340231044,1728881446173,-668.90758046,0.00011,2]
[340231045,1728881446184,-7368.6299918,0.00011,2]
[340231046,1728881446207,-2131.03915843,0.00011,2]
[340231047,1728881446230,-95922.1815695,0.00011,2]
[340231048,1728881446241,-970.93515668,0.00011,2]
[340231049,1728881446253,-1552.725,0.00011,2]
[340231088,1728881912586,350.51,8.685e-05,2]
[340231098,1728882319195,150.0,9.888e-05,2]
[340231100,1728882439847,23900.0,0.00010188,2]
[340231101,1728882516425,332.98,8.31e-05,2]
[340231102,1728882522907,156.66655344,0.00010229,2]
[340231103,1728882534120,691.7164,0.00010155,2]
[340231104,1728882566555,250.0,0.00010212,2]
[340231106,1728882632085,-1000.0,0.00010255,2]
[340231107,1728882632096,-168.08,0.00010329,2]
[340231108,1728882632107,-348.56,0.00010359,2]
[340231109,1728882632117,-332.98,0.00010574,2]
[340231110,1728882632128,-2557.5376347,0.0001062,2]
[340231111,1728882632138,-235.82,0.0001062,2]
[340231112,1728882632148,-150.0,0.00010704,2]
[340231113,1728882632158,-150.0,0.00010899,2]
[340231114,1728882632169,-300.0,0.00010899,2]
[340231115,1728882632180,-2570.1968,0.000109,2]
[340231116,1728882632190,-4334.5387,0.000109,2]
[340231117,1728882632201,-4581.97892537,0.000109,2]
[340231118,1728882632211,-1000.0,0.000109,2]
[340231119,1728882632222,-169.16770408,0.000109,2]
[340231120,1728882632232,-150.0,0.00010905,2]
[340231121,1728882632243,-1.75459722,0.00010905,2]
[340231122,1728882632256,-298.23540278,0.00010905,2]
[340231123,1728882632266,-8792.77459722,0.00010905,2]
[340231124,1728882632281,-426.95540278,0.00010905,2]
[340231125,1728882632295,-155.6082864,0.00010923,2]
[340231126,1728882632308,-445.94337722,0.00010923,2]
[340231127,1728882632321,-5281.44833638,0.00010923,2]
[340231128,1728882632331,-150.0,0.00010923,2]
[340231129,1728882632342,-11476.62436425,0.00010923,2]
[340231130,1728882632354,-2052.37563575,0.00010923,2]
[340231131,1728882632365,-1150.0,0.00010923,2]
[340231132,1728882632375,-1000.0,0.00010945,2]
[340231134,1728882632386,-1000.0,0.00010945,2]
[340231136,1728882632396,-761.94634623,0.00010945,2]
[340231177,1728882638301,-238.05365377,0.00010945,2]
[340231178,1728882638311,-1000.0,0.00010945,2]
[340231179,1728882638323,-1000.0,0.00010945,2]
[340231180,1728882638333,-891.7755,0.00010945,2]
[340231181,1728882638344,-326.38,0.00010949,2]
[340231182,1728882638355,-5228.05,0.00010949,2]
[340231183,1728882638365,-570.11,0.00010949,2]
[340231184,1728882638375,-999.99,0.00010949,2]
[340231185,1728882638386,-157.79,0.00010959,2]
[340231186,1728882638396,-285.97,0.00010959,2]
[340231187,1728882638560,-159.17,0.00010959,2]
[340231188,1728882638570,-839.63,0.00010959,2]
[340231189,1728882638580,-208.706,0.00010959,2]
[340231190,1728882638589,-150.0,0.00010968,2]
[340231192,1728882638598,-500.0,0.00010973,2]
[340231194,1728882638607,-500.0,0.00010973,2]
[340231196,1728882638617,-150.0,0.00010986,2]
[340231198,1728882638626,-521.0,0.00011,2]
[340231200,1728882638635,-25175.18432449,0.00011,2]
[340231202,1728882638646,-1101.8235462,0.00011,2]
[340231204,1728882638657,-4005.22092,0.00011,2]
[340231206,1728882638668,-15762.61016434,0.00011,2]
[340231351,1728882640115,-217710.0,0.00011,2]
[340231354,1728882640127,-9096.64373114,0.00011,2]
[340231356,1728882640139,-8947.21879473,0.00011,2]
[340231358,1728882640151,-8943.78386462,0.00011,2]
[340231361,1728882640163,-9077.54866152,0.00011,2]
[340231363,1728882640174,-8943.84023489,0.00011,2]
[340231365,1728882640185,-1452.25846956,0.00011,2]
[340231367,1728882640197,-1390.74255036,0.00011,2]
[340231369,1728882640209,-82053.56843013,0.00011,2]
[340231717,1728882643810,-1083.0,0.00010923,2]
[340231719,1728882643820,-516.0,0.00011,2]
[340231721,1728882643830,-552.55353911,0.00011,2]
[340231723,1728882643841,-2511.95889705,0.00011,2]
[340231732,1728882643985,-301.25385499,0.00011,2]
[340231735,1728882643997,-3061.42632076,0.00011,2]
[340231825,1728882646055,-356.34,0.000109,2]
[340231826,1728882646067,-88.26115924,0.000109,2]
[340231827,1728882646076,-253.17884076,0.00011,2]
[340231828,1728882646219,-19629.13026702,0.00011,2]
[340231829,1728882646279,-649.43119876,0.00011,2]
[340231830,1728882646461,-30515.7158807,0.00011,2]
[340231831,1728882646472,-6222.99803238,0.00011,2]
[340231832,1728882646483,-267.358254,0.00011,2]
[340231833,1728882646494,-7251.1303635,0.00011,2]
[340231834,1728882646505,-31350.72951064,0.00011,2]
[340231836,1728882661376,174.28,9.886e-05,2]
[340231837,1728882689027,-150.0,0.0001073,2]
[340231838,1728882689049,-150.0,0.00010735,2]
[340231839,1728882689071,-150.0,0.00010737,2]
[340231840,1728882689093,-150.0,0.00010739,2]
[340231841,1728882689114,-150.0,0.00010741,2]
[340231842,1728882689136,-150.0,0.00010745,2]
[340231843,1728882689157,-150.0,0.00010746,2]
[340231844,1728882689178,-150.0,0.0001075,2]
[340231845,1728882689199,-150.0,0.00010754,2]
[340231846,1728882689220,-150.0,0.00010756,2]
[340231847,1728882689241,-150.0,0.00010761,2]
[340231848,1728882689262,-150.0,0.00010767,2]
[340231849,1728882689283,-150.0,0.0001077,2]
[340231850,1728882689305,-150.0,0.00010772,2]
[340231851,1728882689335,-150.0,0.00010781,2]
[340231852,1728882689357,-150.0,0.00010782,2]
[340231853,1728882689379,-150.0,0.00010783,2]
[340231854,1728882689402,-150.0,0.00010785,2]
[340231855,1728882689424,-150.0,0.00010785,2]
[340231856,1728882689447,-150.0,0.00010786,2]
[340231857,1728882689470,-150.0,0.00010787,2]
[340231858,1728882689491,-150.0,0.00010788,2]
[340231859,1728882689513,-150.0,0.00010796,2]
[340231860,1728882689535,-150.0,0.00010799,2]
[340231861,1728882689558,-150.0,0.00010801,2]
[340231862,1728882689579,-150.0,0.00010811,2]
[340231863,1728882689599,-196.0,0.00010811,2]
[340231864,1728882689620,-150.0,0.00010813,2]
[340231865,1728882689644,-150.0,0.00010816,2]
[340231866,1728882689666,-150.0,0.00010819,2]
[340231867,1728882689689,-150.0,0.00010819,2]
[340231868,1728882689711,-150.0,0.00010827,2]
[340231869,1728882689738,-150.0,0.00010835,2]
[340231870,1728882689759,-150.0,0.0001084,2]
[340231871,1728882689781,-150.0,0.00010841,2]
[340231872,1728882689803,-150.0,0.00010843,2]
[340231873,1728882689827,-150.0,0.00010846,2]
[340231874,1728882689850,-150.0,0.00010846,2]
[340231875,1728882689872,-150.0,0.00010848,2]
[340231876,1728882689894,-150.0,0.00010852,2]
[340231877,1728882689917,-150.0,0.00010857,2]
[340231878,1728882689940,-150.0,0.00010862,2]
[340231879,1728882689964,-150.0,0.00010868,2]
[340231880,1728882689986,-150.0,0.0001087,2]
[340231881,1728882690008,-150.0,0.00010873,2]
[340231882,1728882690032,-150.0,0.00010875,2]
[340231883,1728882690053,-150.0,0.00010876,2]
[340231884,1728882690077,-29.0,0.0001088,2]
[340231885,1728882744025,550.0,0.0001,2]
[340231886,1728882757383,151.101116,0.00027,60]
[340231891,1728882872414,-722.16573347,0.0001045,2]
[340231892,1728882872434,-1037.52019319,0.00010629,2]
[340231893,1728882872454,-1500.0,0.00010729,2]
[340231894,1728882872474,-150.0,0.00010756,2]
[340231895,1728882872495,-1494.8519098,0.00010794,2]
[340231896,1728882872516,-150.0,0.0001081,2]
[340231897,1728882872537,-150.0,0.00010824,2]
[340231898,1728882872557,-150.0,0.00010829,2]
[340231899,1728882872578,-150.0,0.00010839,2]
[340231900,1728882872600,-150.0,0.00010871,2]
[340231901,1728882872622,-121.0,0.0001088,2]
[340231902,1728882872643,-150.0,0.00010886,2]
[340231903,1728882872663,-150.0,0.00010888,2]
[340231904,1728882872684,-150.0,0.00010891,2]
[340231905,1728882872706,-150.0,0.00010892,2]
[340231906,1728882872727,-150.0,0.00010893,2]
[340231907,1728882872748,-150.0,0.00010894,2]
[340231908,1728882872772,-150.0,0.00010897,2]
[340231909,1728882872793,-150.0,0.00010897,2]
[340231910,1728882872812,-373.97,0.000109,2]
[340231911,1728882872831,-2500.0,0.000109,2]
[340231912,1728882872853,-4190.4151253,0.000109,2]
[340231913,1728882872873,-969.48,0.000109,2]
[340231914,1728882872892,-515.1411,0.000109,2]
[340231915,1728882872914,-150.0,0.00010901,2]
[340231916,1728882872935,-150.0,0.00010902,2]
[340231917,1728882872955,-150.0,0.00010904,2]
[340231918,1728882872975,-150.0,0.00010908,2]
[340231919,1728882872995,-150.0,0.00010909,2]
[340231920,1728882873016,-1500.0,0.0001091,2]
[340231921,1728882873041,-150.0,0.00010911,2]
[340231922,1728882873184,-150.0,0.00010915,2]
[340231923,1728882873212,-150.0,0.00010916,2]
[340231924,1728882873234,-150.0,0.00010921,2]
[340231925,1728882873258,-150.0,0.00010933,2]
[340231926,1728882873279,-150.0,0.00010941,2]
[340231927,1728882873301,-150.0,0.00010941,2]
[340231928,1728882873322,-150.0,0.00010941,2]
[340231929,1728882873343,-150.0,0.00010941,2]
[340231930,1728882873363,-300.0,0.00010941,2]
[340231931,1728882873385,-150.0,0.00010943,2]
[340231932,1728882873407,-150.0,0.00010944,2]
[340231933,1728882873428,-150.0,0.00010944,2]
[340231934,1728882873450,-150.0,0.00010946,2]
[340231935,1728882873471,-150.0,0.00010947,2]
[340231936,1728882873493,-150.0,0.00010951,2]
[340231937,1728882873517,-150.0,0.00010956,2]
[340231938,1728882873536,-150.0,0.00010958,2]
[340231939,1728882873555,-150.0,0.00010958,2]
[340231940,1728882873574,-160.5,0.00010959,2]
[340231941,1728882873594,-150.0,0.00010959,2]
[340231942,1728882873616,-150.0,0.00010963,2]
[340231943,1728882873638,-150.0,0.00010969,2]
[340231944,1728882873659,-150.0,0.0001097,2]
[340231945,1728882873680,-150.0,0.00010971,2]
[340231946,1728882873699,-642.28649013,0.00010973,2]
[340231947,1728882873720,-150.0,0.00010976,2]
[340231948,1728882873743,-150.0,0.00010982,2]
[340231949,1728882873769,-150.0,0.00010983,2]
[340231950,1728882873790,-150.0,0.00010984,2]
[340231951,1728882873812,-150.0,0.00010987,2]
[340231952,1728882873834,-150.0,0.00010988,2]
[340231953,1728882873855,-150.0,0.0001099,2]
[340231954,1728882873876,-150.0,0.0001099,2]
[340231955,1728882873897,-150.0,0.00010992,2]
[340231956,1728882873919,-150.0,0.00010993,2]
[340231957,1728882873940,-150.0,0.00010993,2]
[340231958,1728882873961,-10639.6299436,0.00010995,2]
[340231959,1728882873981,-64198.2236998,0.00010995,2]
[340231960,1728882874005,-150.0,0.00010998,2]
[340231961,1728882874027,-150.0,0.00010998,2]
[340231962,1728882874050,-1751174.96972677,0.00011,2]
[340231963,1728882874074,-1332455.13506424,0.00011,2]
[340231964,1728882874094,-12134.96486132,0.00011,2]
[340231965,1728882874115,-447544.12598454,0.00011,2]
[340231966,1728882874136,-261.0,0.00011,2]
[340231967,1728882874160,-145571.54934503,0.00011,2]
[340231968,1728882874181,-590358.32337642,0.00011,2]
[340231969,1728882874204,-934788.55480176,0.00011,2]
[340231970,1728882874228,-1400343.24800896,0.00011,2]
[340231971,1728882874249,-150.0,0.00011,2]
[340231972,1728882874275,-1614448.79429011,0.00011,2]
[340231973,1728882874297,-24797.66712645,0.00011,2]
[340231974,1728882874318,-250.0,0.00011,2]
[340231975,1728882874339,-150.0,0.00011,2]
[340231976,1728882874359,-219.0,0.00011,2]
[340231977,1728882874381,-264.337,0.00011,2]
[340231978,1728882874401,-250.0,0.00011,2]
[340231979,1728882874422,-299.758,0.00011,2]
[340231980,1728882874440,-286.634,0.00011,2]
[340231981,1728882874459,-163.849,0.00011,2]
[340231982,1728882874478,-200.0,0.00011,2]
[340231983,1728882874498,-170.124,0.00011,2]
[340231984,1728882874522,-250.0,0.00011,2]
[340231985,1728882874542,-150.216,0.00011,2]
[340231986,1728882874562,-640.721,0.00011,2]
[340231987,1728882874582,-812.0,0.00011,2]
[340231988,1728882874602,-1246.818,0.00011,2]